bitfinex/quotes_SOLUSD_20250403
["timestamp","ask_amount","ask_price","bid_price","bid_amount"]
[1743720995760,37.03729537,117.01,116.98,8.5484]
[1743720997163,37.03729537,117.01,116.97,8.5492]
[1743720998963,20.42648471,117.01,116.97,16.61081066]
[1743721000458,22.48792484,117.02,116.97,16.61081066]
[1743721000660,7.56,117.01,116.97,16.61081066]
[1743721001036,7.56,117.01,116.98,8.5484]
[1743721003462,27.56,117.01,116.98,8.5484]
[1743721004458,36.61081066,116.99,116.94,8.5513]
[1743721004846,36.61081066,116.99,116.94,46.54051066]
[1743721006262,36.61081066,116.99,116.95,16.61081066]
[1743721006651,36.61081066,116.99,116.95,8.5506]
[1743721006958,45.15861066,116.99,116.95,8.5506]
[1743721007165,20.0,116.99,116.95,25.16141066]
[1743721014750,17.03729537,117.0,116.95,25.16141066]
[1743721015047,214.83,117.01,116.96,16.61081066]
[1743721015746,231.44081066,117.01,116.96,16.61081066]
[1743721016167,95.44081066,117.01,116.97,8.5492]
[1743721016375,103.98711066,117.01,116.97,8.5492]
[1743721017675,96.42711066,117.01,116.97,8.5492]
[1743721017861,7.56,117.0,116.97,8.5492]
[1743721019984,7.56,117.0,116.96,8.5499]
[1743721020173,32.71781066,117.0,116.96,8.5499]
[1743721020565,16.61081066,116.99,116.96,8.5499]
[1743721020785,36.61081066,116.99,116.95,8.5502]
[1743721022464,45.15851066,116.99,116.95,8.5502]
[1743721023583,36.61081066,116.99,116.95,8.5502]
[1743721025086,20.0,116.99,116.95,25.16101066]
[1743721027693,20.0,116.99,116.95,46.53761066]
[1743721029188,7.56,117.0,116.95,46.53761066]
[1743721029369,7.56,117.0,116.96,16.61081066]
[1743721029567,7.56,117.0,116.97,8.5492]
[1743721029973,156.0,117.01,116.97,25.16001066]
[1743721030173,4.21601418,117.02,116.99,16.61081066]
[1743721030369,0.14216157,117.03,116.99,16.61081066]
[1743721030683,7.56,117.02,116.99,16.61081066]
[1743721031569,11.85805915,117.02,117.0,8.547]
[1743721033896,20.42648471,117.01,116.97,16.61081066]
[1743721034104,37.03729537,116.99,116.96,8.5499]
[1743721034780,20.0,116.99,116.96,8.5499]
[1743721034991,36.61081066,117.01,116.96,8.5499]
[1743721035183,20.0,117.01,116.97,16.61081066]
[1743721036201,36.61081066,117.01,116.96,46.53551066]
[1743721037296,7.56,117.0,116.96,46.53551066]
[1743721037499,7.56,117.01,116.97,16.61081066]
[1743721037703,4.29805915,117.02,116.98,16.61081066]
[1743721038001,7.56,117.02,116.98,16.61081066]
[1743721038205,7.56,117.02,116.99,8.5477]
[1743721039317,11.82440083,117.02,116.99,8.5477]
[1743721042076,71.27,117.05,117.0,16.61081066]
[1743721042278,78.83,117.05,117.0,16.61081066]
[1743721042485,95.44081066,117.05,117.0,16.61081066]
[1743721043189,103.98431066,117.05,117.01,8.5462]
[1743721043397,37.03729537,117.03,116.98,16.61081066]
[1743721043807,37.03729537,117.01,116.95,21.3759]
[1743721044101,37.03729537,117.01,116.96,8.5499]
[1743721044102,24.17081066,117.0,116.96,8.5499]
[1743721045606,32.71781066,117.0,116.96,8.5499]
[1743721045914,37.03729537,116.99,116.95,8.5502]
[1743721046117,20.42648471,116.99,116.95,25.16101066]
[1743721048728,20.0,116.99,116.95,46.53761066]
[1743721049232,24.17081066,117.0,116.95,46.53761066]
[1743721052020,7.56,117.0,116.95,46.53761066]
[1743721052400,24.17081066,117.0,116.95,46.53761066]
[1743721055759,20.0,117.01,116.96,18.64964886]
[1743721055900,1.6074,117.02,116.98,16.61081066]
[1743721056919,95.58297223,117.03,116.98,16.61081066]
[1743721057429,44.31297223,117.03,116.99,16.61081066]
[1743721057814,44.31297223,117.03,117.0,8.547]
[1743721059010,24.17081066,117.03,117.0,8.547]
[1743721059213,7.56,117.03,117.0,25.15781066]
[1743721060156,24.17081066,117.04,117.0,46.52531066]
[1743721061329,7.56,117.04,117.0,46.52531066]
[1743721062158,24.17081066,117.04,117.0,29.9145]
[1743721062473,36.61081066,117.03,116.99,8.5473]
[1743721080076,36.61081066,117.01,116.95,8.5506]
[1743721080378,24.17081066,117.0,116.95,46.53801066]
[1743721080673,7.56,117.0,116.96,16.61081066]
[1743721080873,7.56,117.0,116.97,29.9222]
[1743721081172,7.56,117.0,116.98,16.61081066]
[1743721082582,7.56,117.0,116.99,8.5477]
[1743721083077,7.56,117.01,116.99,8.5477]
[1743721085858,7.56,117.02,116.99,25.15851066]
[1743721086381,7.56,117.02,117.0,16.61081066]
[1743721086982,7.56,117.02,117.01,8.5462]
[1743721087580,42.41727059,117.05,117.01,8.5462]
[1743721087793,7.56,117.04,117.01,8.5462]
[1743721087968,7.56,117.03,117.01,8.5462]
[1743721089879,7.56,117.03,117.0,8.547]
[1743721091591,7.56,117.03,117.0,46.52531066]
[1743721091768,7.54,117.04,117.01,16.61081066]
[1743721092464,7.54,117.04,117.02,8.5455]
[1743721094396,7.54,117.04,117.01,8.5462]
[1743721095794,24.15081066,117.04,117.01,8.5462]
[1743721096089,7.54,117.04,117.01,8.5462]
[1743721096964,7.54,117.04,117.01,29.9118]
[1743721097603,7.54,117.04,117.01,8.5462]
[1743721102509,24.15081066,117.04,117.01,8.5462]
[1743721102702,16.61081066,117.02,117.0,8.5466]
[1743721103612,16.61081066,117.02,116.99,8.5477]
[1743721103909,16.61081066,117.01,116.99,8.5477]
[1743721104110,7.54,117.0,116.99,8.5477]
[1743721104412,16.61081066,117.01,116.99,8.5477]
[1743721104610,7.54,117.0,116.99,8.5477]
[1743721105008,7.54,117.0,116.97,29.9213]
[1743721108628,16.61081066,116.99,116.96,8.5499]
[1743721108991,27.54,117.0,116.96,8.5499]
[1743721109208,16.61081066,116.99,116.96,8.5499]
[1743721111020,27.54,117.0,116.96,8.5499]
[1743721111218,16.61081066,116.99,116.96,8.5499]
[1743721112719,67.96081066,116.99,116.96,8.5499]
[1743721114038,67.96081066,116.99,116.95,8.5506]
[1743721118214,76.50851066,116.99,116.95,8.5506]
[1743721118397,67.96081066,116.99,116.95,8.5506]
[1743721120225,7.54,116.98,116.95,8.5506]
[1743721122926,7.54,116.98,116.95,46.53801066]
[1743721123123,7.54,116.98,116.96,35.26045952]
[1743721123350,7.54,116.98,116.97,16.61081066]
[1743721123831,18.24011066,117.01,116.97,16.61081066]
[1743721123832,16.61081066,117.03,116.97,16.61081066]
[1743721124008,1.5068,117.04,117.0,16.61081066]
[1743721124327,9.0468,117.04,117.0,16.61081066]
[1743721124506,25.65761066,117.04,117.0,16.61081066]
[1743721125128,25.65761066,117.04,117.01,8.5462]
[1743721126520,18.11761066,117.04,117.01,8.5462]
[1743721126726,25.65761066,117.04,117.01,8.5462]
[1743721127025,9.0468,117.04,117.01,8.5462]
[1743721127241,25.65761066,117.04,117.0,16.61081066]
[1743721128247,0.42648471,117.03,116.97,21.3721]
[1743721128430,0.42648471,117.03,116.93,42.757]
[1743721128431,16.61081066,116.98,116.94,8.5513]
[1743721128743,24.15081066,116.99,116.95,21.3757]
[1743721129054,7.54,116.99,116.95,37.98651066]
[1743721130535,7.54,116.99,116.97,16.61081066]
[1743721130856,24.15081066,117.02,116.96,18.64964886]
[1743721131022,24.15081066,117.02,116.97,16.61081066]
[1743721132451,24.15081066,117.02,116.98,8.5484]
[1743721132752,24.15081066,117.02,116.98,25.15921066]
[1743721132942,24.15081066,117.03,116.98,25.15921066]
[1743721133851,16.61081066,117.02,116.98,25.15921066]
[1743721134149,16.61081066,117.02,116.98,8.5484]
[1743721134447,45.15631066,117.02,116.98,8.5484]
[1743721134656,45.15631066,117.02,116.97,8.5489]
[1743721134657,16.61081066,117.0,116.97,8.5489]
[1743721139558,16.61081066,117.0,116.96,8.5499]
[1743721139873,16.61081066,116.99,116.96,8.5499]
[1743721143062,16.61081066,116.99,116.95,8.5506]
[1743721143363,16.61081066,116.98,116.95,8.5506]
[1743721144564,16.61081066,116.98,116.94,27.20094886]
[1743721144929,16.61081066,116.98,116.94,8.5513]
[1743721145131,16.61081066,116.96,116.93,8.5517]
[1743721146263,7.54,116.97,116.93,25.16251066]
[1743721147259,7.54,116.97,116.95,16.61081066]
[1743721148061,7.54,116.97,116.94,16.61081066]
[1743721148470,7.54,116.97,116.94,35.26045952]
[1743721148764,7.54,116.97,116.95,8.5506]
[1743721149349,24.15081066,116.97,116.95,8.5506]
[1743721152366,7.54,116.97,116.95,8.5506]
[1743721155167,16.61081066,116.96,116.94,8.5513]
[1743721157173,16.61081066,116.96,116.93,8.5521]
[1743721158573,7.54,116.97,116.94,18.64964886]
[1743721158952,16.61081066,116.98,116.94,18.64964886]
[1743721159153,16.61081066,116.99,116.95,8.5506]
[1743721159450,18.17781066,117.0,116.96,18.64964886]
[1743721159760,16.61081066,117.0,116.96,18.64964886]
[1743721160472,16.61081066,117.0,116.97,8.5492]
[1743721164487,24.15081066,117.01,116.97,8.5492]
[1743721165056,75.50081066,117.01,116.97,8.5492]
[1743721165257,24.15081066,117.01,116.97,8.5492]
[1743721166189,16.61081066,117.0,116.97,8.5492]
[1743721166886,24.15081066,117.01,116.97,8.5492]
[1743721167671,24.15081066,117.01,116.98,18.64964886]
[1743721167975,16.61081066,117.02,116.98,18.64964886]
[1743721168182,16.61081066,117.01,116.98,18.64964886]
[1743721168782,16.61081066,117.01,116.97,29.9222]
[1743721169288,16.61081066,117.0,116.97,29.9222]
[1743721170583,16.61081066,117.0,116.97,8.5492]
[1743721171382,16.61081066,117.0,116.96,8.5499]
[1743721171585,16.61081066,117.0,116.96,27.19954886]
[1743721172088,16.61081066,117.0,116.96,48.57434886]
[1743721174694,9.1674,117.03,116.98,16.61081066]
[1743721174897,25.77821066,117.03,116.98,16.61081066]
[1743721175571,16.61081066,117.02,116.98,16.61081066]
[1743721175791,16.61081066,117.02,116.99,8.5477]
[1743721177800,16.61081066,117.02,116.98,29.9191]
[1743721180505,16.61081066,117.01,116.98,29.9191]
[1743721181901,16.61081066,117.01,116.98,8.5484]
[1743721182476,16.61081066,117.0,116.98,8.5484]
[1743721182677,16.61081066,117.0,116.97,8.5488]
[1743721184403,16.61081066,117.0,116.98,18.64964886]
[1743721184703,9.1674,117.03,116.98,35.26045952]
[1743721185904,16.61081066,117.02,116.99,8.5477]
[1743721187314,25.77821066,117.03,116.99,8.5477]
[1743721187816,25.77821066,117.03,116.98,21.3702]
[1743721193495,25.77821066,117.03,116.98,29.9186]
[1743721193714,25.77821066,117.03,116.99,18.64964886]
[1743721195823,25.77821066,117.03,117.0,8.547]
[1743721196417,9.1674,117.03,117.0,8.547]
[1743721196632,28.36647059,117.05,117.0,8.547]
[1743721196825,28.36647059,117.05,117.0,29.9145]
[1743721197010,20.82647059,117.05,117.0,29.9145]
[1743721199429,16.61081066,117.04,117.0,29.9145]
[1743721201327,11.75565993,117.05,117.0,29.9145]
[1743721201536,16.61081066,117.04,117.0,29.9145]
[1743721201825,16.61081066,117.03,117.0,29.9145]
[1743721202030,18.21371066,117.06,117.01,35.26045952]
[1743721202238,7.54,117.07,117.02,46.52011066]
[1743721202529,16.61081066,117.04,117.02,8.5455]
[1743721203017,24.15081066,117.03,116.99,8.5477]
[1743721203340,5.93839418,117.05,116.99,65.17745952]
[1743721203634,5.93839418,117.05,117.01,16.61081066]
[1743721203635,7.54,117.05,117.01,16.61081066]
[1743721203802,7.54,117.05,117.02,16.61081066]
[1743721204008,5.82339093,117.08,117.03,16.61081066]
[1743721204342,1.6029,117.11,117.07,16.61081066]
[1743721204519,13.3581388,117.12,117.09,16.61081066]
[1743721205029,13.3581388,117.12,117.1,26.0]
[1743721205205,13.3581388,117.13,117.1,42.61081066]
[1743721205605,16.61081066,117.12,117.07,35.26045952]
[1743721206029,13.3581388,117.13,117.07,35.26045952]
[1743721206235,13.3581388,117.13,117.1,8.5397]
[1743721206444,13.3581388,117.13,117.1,25.15051066]
[1743721207013,13.3581388,117.13,117.11,35.26045952]
[1743721207936,7.54,117.15,117.11,35.26045952]
[1743721208246,11.77026041,117.15,117.1,16.61081066]
[1743721208434,7.54,117.15,117.11,35.26045952]
[1743721208647,7.54,117.15,117.12,16.61081066]
[1743721209508,381.26081066,117.17,117.12,25.14841066]
[1743721209919,31.21,117.17,117.13,16.61081066]
[1743721210117,3.67,117.17,117.14,16.61081066]
[1743721210339,3.67,117.17,117.16,16.61081066]
[1743721210517,3.67,117.17,117.16,35.26045952]
[1743721211523,3.67,117.17,117.16,43.79575952]
[1743721211933,0.0001,117.17,117.16,44.22224423]
[1743721212125,14.9975388,117.24,117.19,26.0]
[1743721212329,31.60834946,117.24,117.2,18.64964886]
[1743721212538,16.61081066,117.21,117.13,8.5375]
[1743721212755,16.61081066,117.16,117.13,8.5375]
[1743721212925,7.64,117.16,117.11,8.5388]
[1743721213128,7.64,117.16,117.1,8.5397]
[1743721213330,0.42648471,117.15,117.09,25.15091066]
[1743721213545,16.61081066,117.13,117.09,8.5401]
[1743721213847,25.86614177,117.13,117.09,8.5401]
[1743721214157,20.0,117.15,117.09,8.5401]
[1743721214323,25.86614177,117.14,117.09,34.40624177]
[1743721214846,28.5361,117.15,117.08,27.19054886]
[1743721214847,25.86614177,117.12,117.08,27.19054886]
[1743721215047,25.86614177,117.13,117.08,53.05669063]
[1743721215551,33.62614177,117.12,117.08,8.5409]
[1743721215743,7.76,117.12,117.08,8.5409]
[1743721216047,7.76,117.12,117.05,8.5433]
[1743721216048,25.86614177,117.09,117.05,8.5433]
[1743721216451,25.86614177,117.11,117.07,44.51579063]
[1743721216642,25.86614177,117.1,117.06,18.64964886]
[1743721216831,25.86614177,117.09,117.05,34.40944177]
[1743721217024,25.86614177,117.09,117.05,8.5433]
[1743721218158,25.86614177,117.08,117.05,8.5433]
[1743721218335,33.66614177,117.08,117.05,8.5433]
[1743721218827,33.66614177,117.08,117.04,8.5437]
[1743721219054,25.86614177,117.07,117.02,34.41164177]
[1743721219550,25.86614177,117.06,117.02,34.41164177]
[1743721219728,27.8,117.08,117.02,8.5455]
[1743721219729,25.86614177,117.05,117.02,8.5455]
[1743721220042,25.86614177,117.06,117.02,8.5455]
[1743721220972,25.86614177,117.05,117.02,8.5455]
[1743721221251,25.94660655,117.06,117.02,8.5455]
[1743721221426,25.86614177,117.05,117.02,8.5455]
[1743721221622,21.6394,117.06,117.02,34.41164177]
[1743721221855,1.6394,117.06,117.02,34.41164177]
[1743721222032,54.09262648,117.08,117.03,25.86614177]
[1743721222351,54.09262648,117.08,117.04,8.544]
[1743721222554,25.86614177,117.07,117.04,8.544]
[1743721224342,25.86614177,117.07,117.03,8.5448]
[1743721225669,25.86614177,117.04,117.03,8.5448]
[1743721225849,53.68614177,117.04,116.98,21.3705]
[1743721226044,25.86614177,117.02,116.99,8.5477]
[1743721226247,25.86614177,117.02,116.98,29.9189]
[1743721227140,25.86614177,117.03,116.98,55.78504177]
[1743721227759,25.86614177,117.03,116.98,29.9189]
[1743721227939,25.86614177,117.03,116.98,55.78504177]
[1743721228480,25.86614177,117.02,116.98,8.5484]
[1743721228664,25.86614177,117.01,116.98,8.5484]
[1743721229337,25.86614177,117.02,116.98,8.5484]
[1743721230038,25.86614177,117.0,116.98,8.5484]
[1743721230346,33.64614177,117.0,116.98,8.5484]
[1743721230742,25.86614177,116.99,116.94,65.89379063]
[1743721230946,25.86614177,116.99,116.94,47.24414177]
[1743721231653,25.86614177,116.99,116.95,8.5506]
[1743721234450,25.86614177,116.99,116.95,29.9272]
[1743721235357,25.86614177,116.99,116.95,55.79334177]
[1743721237164,136.14216157,117.02,116.97,25.86614177]
[1743721237469,7.76,117.02,116.98,25.86614177]
[1743721237970,7.76,117.02,116.96,18.64964886]
[1743721237971,33.62614177,117.02,116.97,55.78834177]
[1743721238683,25.86614177,117.02,116.97,55.78834177]
[1743721239884,25.86614177,117.02,116.98,25.86614177]
[1743721240748,25.86614177,117.02,116.97,55.78834177]
[1743721243978,7.78,117.03,116.98,44.51579063]
[1743721244173,33.64614177,117.03,116.98,44.51579063]
[1743721244786,25.86614177,117.03,116.99,8.5477]
[1743721245088,33.60614177,117.03,116.99,8.5477]
[1743721245459,35.12044177,117.04,116.99,55.78314177]
[1743721246579,25.86614177,117.03,116.99,8.5477]
[1743721246760,25.86614177,117.02,116.99,8.5477]
[1743721248082,25.86614177,117.03,116.99,8.5477]
[1743721248274,35.12044177,117.04,116.99,34.41384177]
[1743721248472,35.12044177,117.04,116.99,55.78314177]
[1743721248673,25.86614177,117.03,116.99,29.917]
[1743721249190,35.12044177,117.04,117.0,25.86614177]
[1743721249586,27.38044177,117.04,117.0,25.86614177]
[1743721250166,27.38044177,117.04,116.99,55.78314177]
[1743721250371,25.86614177,117.05,117.0,44.51579063]
[1743721250573,33.60614177,117.05,117.0,44.51579063]
[1743721251089,33.60614177,117.05,117.01,29.9118]
[1743721252274,33.60614177,117.05,117.01,55.77794177]
[1743721252884,33.60614177,117.05,117.01,29.9118]
[1743721253187,25.86614177,117.03,117.01,8.5462]
[1743721254685,25.86614177,117.03,116.99,29.9161]
[1743721255667,33.58614177,117.04,116.99,55.78224177]
[1743721256580,25.86614177,117.03,116.99,29.9161]
[1743721258002,7.72,117.04,116.99,29.9161]
[1743721258169,33.58614177,117.04,116.99,55.78224177]
[1743721258369,33.58614177,117.04,116.99,29.9161]
[1743721261294,33.58614177,117.04,116.95,44.3138]
[1743721261295,25.86614177,117.0,116.93,49.1615]
[1743721261495,25.86614177,116.97,116.95,21.3762]
[1743721261692,25.86614177,116.97,116.94,8.5513]
[1743721262083,25.86614177,116.98,116.94,29.9297]
[1743721263098,33.60614177,116.99,116.95,18.64964886]
[1743721263296,7.74,116.99,116.95,44.51579063]
[1743721263672,7.74,116.99,116.96,25.86614177]
[1743721263898,7.74,117.03,116.98,44.51579063]
[1743721264083,7.74,117.03,116.99,25.86614177]
[1743721264293,33.60614177,117.03,116.99,25.86614177]
[1743721264811,7.74,117.03,116.99,25.86614177]
[1743721265890,7.74,117.03,117.0,29.9145]
[1743721266082,7.74,117.03,117.0,55.78064177]
[1743721266284,7.74,117.03,117.0,29.9145]
[1743721267378,7.74,117.03,117.01,18.64964886]
[1743721267578,27.44134177,117.05,117.01,18.64964886]
[1743721267791,25.86614177,117.04,117.0,29.9145]
[1743721267995,25.86614177,117.03,117.0,21.3675]
[1743721269884,25.86614177,117.03,116.99,8.5477]
[1743721270197,25.86614177,117.01,116.99,8.5477]
[1743721272908,25.86614177,117.0,116.98,8.5481]
[1743721273094,25.86614177,116.99,116.94,29.9297]
[1743721273274,25.86614177,116.97,116.94,29.9297]
[1743721273494,33.60614177,116.98,116.94,29.9297]
[1743721274291,7.74,116.98,116.94,55.79584177]
[1743721275900,7.74,116.98,116.95,44.51579063]
[1743721276106,7.74,116.98,116.96,8.5499]
[1743721277401,33.60614177,117.01,116.96,55.79084177]
[1743721277605,164.21588471,117.03,116.97,44.51579063]
[1743721277799,33.60614177,117.02,116.97,44.51579063]
[1743721278113,25.86614177,117.02,116.98,8.5484]
[1743721278292,25.86614177,117.01,116.98,8.5484]
[1743721280802,25.86614177,117.0,116.98,8.5484]
[1743721281101,25.86614177,116.99,116.96,8.5499]
[1743721281513,25.86614177,116.98,116.96,8.5499]
[1743721281685,25.86614177,116.97,116.96,8.5499]
[1743721281885,7.74,116.99,116.94,48.57934886]
[1743721282098,7.74,116.99,116.94,74.44549063]
[1743721282099,33.60614177,116.99,116.94,74.44549063]
[1743721284408,25.86614177,116.98,116.94,48.57934886]
[1743721285307,25.86614177,116.96,116.94,8.5513]
[1743721285509,25.86614177,116.95,116.92,8.5528]
[1743721285733,25.86614177,116.94,116.92,8.5528]
[1743721288417,25.86614177,116.94,116.9,29.9391]
[1743721290024,25.86614177,116.93,116.9,29.9391]
[1743721290726,25.86614177,116.94,116.9,29.9391]
[1743721291226,25.86614177,116.91,116.89,8.5546]
[1743721291424,25.86614177,116.9,116.87,8.5565]
[1743721291606,25.86614177,116.88,116.82,29.9605]
[1743721291800,25.86614177,116.87,116.82,29.9605]
[1743721292000,7.74,116.87,116.83,25.86614177]
[1743721292222,7.74,116.87,116.85,18.64964886]
[1743721292425,25.86614177,116.89,116.85,18.64964886]
[1743721292821,25.86614177,116.89,116.86,8.5572]
[1743721293901,0.14216157,116.86,116.81,8.5609]
[1743721294113,25.86614177,116.83,116.81,8.5609]
[1743721294927,25.86614177,116.83,116.78,117.47126599]
[1743721294928,25.86614177,116.83,116.8,18.64964886]
[1743721295231,33.62614177,116.85,116.8,44.51579063]
[1743721295425,46.29262648,116.84,116.79,29.9676]
[1743721295640,25.86614177,116.83,116.79,55.83374177]
[1743721295829,25.86614177,116.84,116.8,18.64964886]
[1743721296139,25.86614177,116.84,116.79,55.83374177]
[1743721296347,25.86614177,116.84,116.8,44.51579063]
[1743721296730,25.86614177,116.84,116.8,18.64964886]
[1743721296910,25.86614177,116.84,116.81,8.5609]
[1743721297916,7.76,116.85,116.81,29.9631]
[1743721298116,33.62614177,116.85,116.81,29.9631]
[1743721298414,25.86614177,116.84,116.81,29.9631]
[1743721299222,25.86614177,116.84,116.81,8.5609]
[1743721299417,25.86614177,116.83,116.81,8.5609]
[1743721299616,25.86614177,116.84,116.81,8.5609]
[1743721299816,25.86614177,116.83,116.81,8.5609]
[1743721301122,25.86614177,116.83,116.79,29.9674]
[1743721301558,25.86614177,116.83,116.79,55.83354177]
[1743721302451,25.86614177,116.83,116.79,29.9674]
[1743721302868,20.0,116.84,116.79,29.9674]
[1743721303035,7.76,116.85,116.81,25.86614177]
[1743721303453,33.62614177,116.85,116.81,25.86614177]
[1743721304568,7.76,116.85,116.82,8.5601]
[1743721305134,33.62614177,116.85,116.82,8.5601]
[1743721305353,33.62614177,116.85,116.82,29.9605]
[1743721305667,161.86614177,116.87,116.83,25.86614177]
[1743721305834,7.74,116.87,116.83,25.86614177]
[1743721306035,25.86614177,116.86,116.82,29.9605]
[1743721306243,25.86614177,116.84,116.82,8.5601]
[1743721306434,33.62614177,116.83,116.79,8.5623]
[1743721306935,33.62614177,116.83,116.79,29.9682]
[1743721307772,33.62614177,116.83,116.79,55.83434177]
[1743721308853,7.76,116.83,116.79,55.83434177]
[1743721309048,33.62614177,116.83,116.79,55.83434177]
[1743721310875,33.62614177,116.83,116.79,21.4059]
[1743721311578,33.62614177,116.83,116.79,47.27204177]
[1743721311741,7.76,116.83,116.8,44.51579063]
[1743721312341,25.86614177,116.85,116.8,44.51579063]
[1743721312342,33.60614177,116.85,116.8,44.51579063]
[1743721312842,33.60614177,116.85,116.81,8.5609]
[1743721313669,33.60614177,116.85,116.81,55.82924177]
[1743721313874,33.60614177,116.85,116.81,29.9631]
[1743721314489,25.86614177,116.85,116.81,29.9631]
[1743721314770,25.86614177,116.83,116.8,8.5616]
[1743721315173,33.62614177,116.85,116.8,55.83184177]
[1743721315471,33.62614177,116.85,116.81,25.86614177]
[1743721315767,33.62614177,116.85,116.8,29.9657]
[1743721315976,25.86614177,116.84,116.8,29.9657]
[1743721318472,33.62614177,116.85,116.8,55.83184177]
[1743721320146,25.86614177,116.84,116.8,55.83184177]
[1743721321371,33.62614177,116.85,116.8,55.83184177]
[1743721323485,33.62614177,116.85,116.8,29.9657]
[1743721323682,25.86614177,116.84,116.8,29.9657]
[1743721325288,7.76,116.85,116.8,55.83184177]
[1743721325289,33.62614177,116.85,116.8,55.83184177]
[1743721325484,33.62614177,116.85,116.8,29.9657]
[1743721325697,25.86614177,116.84,116.8,29.9657]
[1743721326890,25.86614177,116.83,116.8,8.5616]
[1743721327381,45.86614177,116.84,116.8,8.5616]
[1743721327689,36.6383011,116.84,116.8,8.5616]
[1743721328389,24.54046267,116.85,116.8,46.6040011]
[1743721330091,24.54046267,116.85,116.8,29.9657]
[1743721330277,33.09846267,116.85,116.8,29.9657]
[1743721330462,33.09846267,116.85,116.8,8.5616]
[1743721330667,16.6383011,116.84,116.8,8.5616]
[1743721331695,24.54046267,116.85,116.8,25.1999011]
[1743721332174,24.54046267,116.85,116.81,16.6383011]
[1743721332175,7.76,116.85,116.81,16.6383011]
[1743721332568,7.76,116.85,116.82,8.5601]
[1743721332990,72.9209,116.88,116.82,46.5988011]
[1743721333200,89.5592011,116.88,116.83,16.6383011]
[1743721333382,7.74,116.87,116.83,16.6383011]
[1743721334683,51.35,116.86,116.84,8.5587]
[1743721335991,24.3783011,116.87,116.84,8.5587]
[1743721336192,7.74,116.87,116.84,8.5587]
[1743721336591,89.5592011,116.88,116.84,8.5587]
[1743721336791,97.2792011,116.88,116.84,8.5587]
[1743721336989,105.8350011,116.88,116.84,8.5587]
[1743721337588,97.2792011,116.88,116.84,8.5587]
[1743721338073,105.8350011,116.88,116.84,8.5587]
[1743721339383,105.8350011,116.88,116.83,25.1973011]
[1743721339999,16.6383011,116.87,116.83,8.559]
[1743721340380,17.06478581,116.86,116.81,16.6383011]
[1743721340584,87.9883011,116.85,116.78,18.64964886]
[1743721340889,7.7,116.84,116.8,16.6383011]
[1743721341119,75.6883011,116.84,116.79,16.6383011]
[1743721341310,68.41478581,116.83,116.78,8.5631]
[1743721341486,88.13046267,116.81,116.77,8.5638]
[1743721341687,24.3583011,116.8,116.77,8.5638]
[1743721342410,88.41478581,116.79,116.75,8.5651]
[1743721342619,16.6383011,116.78,116.75,8.5651]
[1743721344088,88.41478581,116.79,116.75,8.5651]
[1743721345110,16.6383011,116.78,116.75,8.5651]
[1743721345403,16.6383011,116.76,116.72,25.2058011]
[1743721345583,88.41478581,116.77,116.72,46.6245011]
[1743721345785,97.80558512,116.77,116.72,56.01530041]
[1743721345994,1.5732,116.78,116.74,26.02910041]
[1743721346400,27.60230041,116.78,116.74,26.02910041]
[1743721347407,27.60230041,116.78,116.75,8.5653]
[1743721348107,1.5732,116.78,116.75,8.5653]
[1743721348310,1.5732,116.78,116.75,29.9785]
[1743721349101,27.60230041,116.78,116.75,29.9785]
[1743721349310,27.60230041,116.78,116.75,21.4132]
[1743721349694,27.60230041,116.78,116.74,8.566]
[1743721351512,46.45558512,116.77,116.74,8.566]
[1743721352014,26.02910041,116.76,116.74,8.566]
[1743721352909,30.33948248,116.76,116.74,8.566]
[1743721353510,30.33948248,116.76,116.73,29.9828]
[1743721353809,27.60230041,116.78,116.74,26.02910041]
[1743721354011,1.5732,116.78,116.74,26.02910041]
[1743721354897,27.60230041,116.78,116.73,29.9828]
[1743721355099,26.02910041,116.77,116.73,29.9828]
[1743721355293,26.02910041,116.76,116.73,8.5667]
[1743721355499,26.02910041,116.76,116.72,8.5675]
[1743721356490,7.7,116.75,116.72,8.5675]
[1743721357909,53.72910041,116.75,116.72,8.5675]
[1743721358613,7.7,116.75,116.72,8.5675]
[1743721358817,7.7,116.75,116.72,29.9862]
[1743721359522,59.05,116.75,116.72,29.9862]
[1743721359819,59.05,116.75,116.7,18.64964886]